[Event "Late-Titled-Tuesday-Blitz-September-26-2023"]
[Site "Chess.com"]
[Date "2023.09.26"]
[Round "1"]
[White "Maksimus1998"]
[Black "AlexandraBotez"]
[Result "1-0"]
[WhiteElo "2573"]
[BlackElo "2243"]
[TimeControl "180+1"]
[EndTime "14:06:42 PDT"]
[Termination "Maksimus1998 won by resignation"]

1. g3 {[%clk 0:02:57.4]} 1... g6 {[%clk 0:02:59.7]} 2. Bg2 {[%clk 0:02:57.4]}
2... Bg7 {[%clk 0:03:00.1]} 3. e4 {[%clk 0:02:58]} 3... d6 {[%clk 0:02:58]} 4.
d4 {[%clk 0:02:54.6]} 4... Nd7 {[%clk 0:02:57.5]} 5. Nc3 {[%clk 0:02:54.2]} 5...
Ngf6 {[%clk 0:02:57.5]} 6. Nge2 {[%clk 0:02:53.5]} 6... O-O {[%clk 0:02:57.8]}
7. O-O {[%clk 0:02:53.5]} 7... e5 {[%clk 0:02:56.4]} 8. h3 {[%clk 0:02:53.4]}
8... b6 {[%clk 0:02:52.7]} 9. Be3 {[%clk 0:02:48.5]} 9... Bb7 {[%clk 0:02:52.3]}
10. d5 {[%clk 0:02:26.8]} 10... a5 {[%clk 0:02:47.8]} 11. f4 {[%clk 0:02:15.6]}
11... Ba6 {[%clk 0:02:41.9]} 12. f5 {[%clk 0:02:14.5]} 12... Nc5 {[%clk
0:02:38.4]} 13. g4 {[%clk 0:02:12.6]} 13... gxf5 {[%clk 0:02:32.8]} 14. Rxf5
{[%clk 0:02:06.2]} 14... Kh8 {[%clk 0:02:28.8]} 15. Ng3 {[%clk 0:02:05]} 15...
Bc8 {[%clk 0:02:17.8]} 16. Rf2 {[%clk 0:02:03.9]} 16... Ng8 {[%clk 0:02:06.5]}
17. Qd2 {[%clk 0:01:55.4]} 17... Nd7 {[%clk 0:01:52.3]} 18. Raf1 {[%clk
0:01:52]} 18... Ba6 {[%clk 0:01:46.1]} 19. Nce2 {[%clk 0:01:41.9]} 19... Qe8
{[%clk 0:01:38]} 20. Nf5 {[%clk 0:01:30.5]} 20... f6 {[%clk 0:01:31.6]} 21. Bf3
{[%clk 0:01:16.3]} 21... Rf7 {[%clk 0:01:05.5]} 22. g5 {[%clk 0:01:04.7]} 22...
Nf8 {[%clk 0:01:03.3]} 23. Bh5 {[%clk 0:00:56.5]} 23... Ng6 {[%clk 0:01:03.3]}
24. Bxg6 {[%clk 0:00:56.7]} 24... hxg6 {[%clk 0:01:03]} 25. Nh4 {[%clk
0:00:56.7]} 25... Rf8 {[%clk 0:01:00.5]} 26. Rg2 {[%clk 0:00:48.6]} 26... Ne7
{[%clk 0:00:59.7]} 27. gxf6 {[%clk 0:00:42]} 27... Rxf6 {[%clk 0:00:50.4]} 28.
Rxf6 {[%clk 0:00:40.2]} 28... Bxf6 {[%clk 0:00:50]} 29. Bg5 {[%clk 0:00:40.8]}
29... Bg7 {[%clk 0:00:12.4]} 30. Bxe7 {[%clk 0:00:38]} 30... Bxe2 {[%clk
0:00:12.5]} 31. Qxe2 {[%clk 0:00:36.2]} 31... Kh7 {[%clk 0:00:11.9]} 32. Nxg6
{[%clk 0:00:34.4]} 32... Qf7 {[%clk 0:00:12]} 33. Qh5+ {[%clk 0:00:32]} 33...
Kg8 {[%clk 0:00:12.3]} 34. Rf2 {[%clk 0:00:31.5]} 1-0

[Event "Late-Titled-Tuesday-Blitz-September-26-2023"]
[Site "Chess.com"]
[Date "2023.09.26"]
[Round "1"]
[White "Rodalquilar"]
[Black "RIPOL"]
[Result "1-0"]
[WhiteElo "2753"]
[BlackElo "2413"]
[TimeControl "180+1"]
[EndTime "14:06:47 PDT"]
[Termination "Rodalquilar won on time"]

1. d4 {[%clk 0:03:00.9]} 1... Nf6 {[%clk 0:02:59]} 2. Nf3 {[%clk 0:03:01.2]}
2... d5 {[%clk 0:02:56.8]} 3. Bf4 {[%clk 0:03:01.5]} 3... Bf5 {[%clk 0:02:53.6]}
4. e3 {[%clk 0:03:01.3]} 4... c6 {[%clk 0:02:50.4]} 5. c4 {[%clk 0:03:01.5]}
5... Bxb1 {[%clk 0:02:12.7]} 6. Qxb1 {[%clk 0:03:01.2]} 6... e6 {[%clk 0:02:09]}
7. Bd3 {[%clk 0:02:55.2]} 7... Bb4+ {[%clk 0:02:04.2]} 8. Ke2 {[%clk 0:02:55.5]}
8... Be7 {[%clk 0:02:02.1]} 9. Rd1 {[%clk 0:02:51.4]} 9... O-O {[%clk
0:01:59.7]} 10. b4 {[%clk 0:02:46]} 10... dxc4 {[%clk 0:01:41.9]} 11. Bxc4
{[%clk 0:02:46.1]} 11... Nd5 {[%clk 0:01:37.3]} 12. Bxd5 {[%clk 0:02:46.3]}
12... cxd5 {[%clk 0:01:30.5]} 13. Ne5 {[%clk 0:02:43.5]} 13... Nd7 {[%clk
0:01:26.5]} 14. Qb3 {[%clk 0:02:12.2]} 14... Nxe5 {[%clk 0:01:17.1]} 15. Bxe5
{[%clk 0:02:12.5]} 15... Qb6 {[%clk 0:01:05.4]} 16. b5 {[%clk 0:02:05.9]} 16...
Rfc8 {[%clk 0:01:04.4]} 17. a4 {[%clk 0:02:05]} 17... a6 {[%clk 0:00:56.9]} 18.
Rac1 {[%clk 0:01:58]} 18... axb5 {[%clk 0:00:54.5]} 19. Qxb5 {[%clk 0:01:46.4]}
19... Qxb5+ {[%clk 0:00:50.7]} 20. axb5 {[%clk 0:01:47.3]} 20... f6 {[%clk
0:00:39.3]} 21. Bc7 {[%clk 0:01:41.8]} 21... Kf8 {[%clk 0:00:38]} 22. g4 {[%clk
0:01:39.5]} 22... Ke8 {[%clk 0:00:37.5]} 23. h4 {[%clk 0:01:34.8]} 23... Kd7
{[%clk 0:00:35.9]} 24. b6 {[%clk 0:01:35.4]} 24... Ra2+ {[%clk 0:00:33.6]} 25.
Kf3 {[%clk 0:01:35.8]} 25... Rb2 {[%clk 0:00:26.8]} 26. Kg3 {[%clk 0:01:28.2]}
26... h6 {[%clk 0:00:20.1]} 27. h5 {[%clk 0:01:22.8]} 27... Rb3 {[%clk
0:00:18.3]} 28. Kf4 {[%clk 0:01:18.7]} 28... Rb4 {[%clk 0:00:17.1]} 29. f3
{[%clk 0:01:10.5]} 29... Rb3 {[%clk 0:00:16.8]} 30. e4 {[%clk 0:01:02.4]} 30...
dxe4 {[%clk 0:00:15]} 31. fxe4 {[%clk 0:01:03.3]} 31... Rb4 {[%clk 0:00:12.5]}
32. d5 {[%clk 0:00:44.6]} 32... e5+ {[%clk 0:00:11.5]} 33. Kf5 {[%clk
0:00:43.7]} 33... Rb2 {[%clk 0:00:03.2]} 34. Kg6 {[%clk 0:00:41.5]} 34... Rg2
{[%clk 0:00:02.3]} 35. Rg1 {[%clk 0:00:40.9]} 1-0

[Event "Late-Titled-Tuesday-Blitz-September-26-2023"]
[Site "Chess.com"]
[Date "2023.09.26"]
[Round "1"]
[White "FMVolodymyrSakun"]
[Black "Dontmesswithme_2"]
[Result "0-1"]
[WhiteElo "2658"]
[BlackElo "2401"]
[TimeControl "180+1"]
[EndTime "14:06:48 PDT"]
[Termination "Dontmesswithme_2 won on time"]

1. e4 {[%clk 0:03:00.9]} 1... e6 {[%clk 0:02:58.9]} 2. d4 {[%clk 0:03:00.3]}
2... d5 {[%clk 0:02:58.6]} 3. e5 {[%clk 0:03:00.5]} 3... c5 {[%clk 0:02:58.4]}
4. c3 {[%clk 0:03:00.9]} 4... Nc6 {[%clk 0:02:58.8]} 5. Nf3 {[%clk 0:03:01.3]}
5... Qb6 {[%clk 0:02:59.1]} 6. Bd3 {[%clk 0:03:01.2]} 6... Bd7 {[%clk
0:02:58.3]} 7. O-O {[%clk 0:03:00.6]} 7... cxd4 {[%clk 0:02:58.9]} 8. a3 {[%clk
0:02:58.1]} 8... Nge7 {[%clk 0:02:57.8]} 9. h4 {[%clk 0:02:56.3]} 9... Rc8
{[%clk 0:02:54.3]} 10. Re1 {[%clk 0:02:55.4]} 10... f6 {[%clk 0:02:45.6]} 11.
cxd4 {[%clk 0:02:48.7]} 11... Nxd4 {[%clk 0:02:37.4]} 12. Nxd4 {[%clk
0:02:48.1]} 12... Rxc1 {[%clk 0:02:33.6]} 13. Qxc1 {[%clk 0:02:34.4]} 13... Qxd4
{[%clk 0:02:31.4]} 14. Qc3 {[%clk 0:01:58.7]} 14... fxe5 {[%clk 0:02:19.8]} 15.
Rxe5 {[%clk 0:01:51.8]} 15... Qxh4 {[%clk 0:02:18.8]} 16. Nd2 {[%clk 0:01:44.2]}
16... Nc6 {[%clk 0:02:18.3]} 17. Nf3 {[%clk 0:01:43.3]} 17... Qf6 {[%clk
0:02:17.7]} 18. Re2 {[%clk 0:01:36.5]} 18... Bd6 {[%clk 0:02:14.2]} 19. Qb3
{[%clk 0:01:21.1]} 19... O-O {[%clk 0:01:41.7]} 20. Qxb7 {[%clk 0:01:17.2]}
20... Rf7 {[%clk 0:01:41.8]} 21. Qa6 {[%clk 0:01:04.1]} 21... Qh6 {[%clk
0:01:36.9]} 22. Rc2 {[%clk 0:00:48.8]} 22... Rxf3 {[%clk 0:01:13.8]} 23. Rxc6
{[%clk 0:00:45.2]} 23... Qh2+ {[%clk 0:01:06.9]} 24. Kf1 {[%clk 0:00:45.3]}
24... Qh1+ {[%clk 0:01:04.5]} 25. Ke2 {[%clk 0:00:45.1]} 25... Qxg2 {[%clk
0:01:03.9]} 26. Rxd6 {[%clk 0:00:25.7]} 26... Rxf2+ {[%clk 0:00:27.1]} 27. Ke1
{[%clk 0:00:20.5]} 27... Rxb2 {[%clk 0:00:21.6]} 28. Be2 {[%clk 0:00:01.4]}
28... Qg1+ {[%clk 0:00:20.3]} 0-1

[Event "Late-Titled-Tuesday-Blitz-September-26-2023"]
[Site "Chess.com"]
[Date "2023.09.26"]
[Round "1"]
[White "vanyakuba"]
[Black "QuintilianoR"]
[Result "1/2-1/2"]
[WhiteElo "2382"]
[BlackElo "2663"]
[TimeControl "180+1"]
[EndTime "14:06:55 PDT"]
[Termination "Game drawn by repetition"]

1. e4 {[%clk 0:02:59.1]} 1... c5 {[%clk 0:02:59.6]} 2. c3 {[%clk 0:02:59.1]}
2... d5 {[%clk 0:02:58.5]} 3. exd5 {[%clk 0:02:59]} 3... Nf6 {[%clk 0:02:58.4]}
4. d4 {[%clk 0:02:59.9]} 4... Nxd5 {[%clk 0:02:57]} 5. Bb5+ {[%clk 0:02:55]}
5... Bd7 {[%clk 0:02:52.7]} 6. Bxd7+ {[%clk 0:02:54.6]} 6... Nxd7 {[%clk
0:02:46.3]} 7. Nf3 {[%clk 0:02:36.3]} 7... e6 {[%clk 0:02:44.9]} 8. O-O {[%clk
0:02:34.5]} 8... cxd4 {[%clk 0:02:44.5]} 9. Nxd4 {[%clk 0:02:26.7]} 9... Be7
{[%clk 0:02:41.4]} 10. c4 {[%clk 0:02:26.5]} 10... N5f6 {[%clk 0:02:37.9]} 11.
b3 {[%clk 0:02:23]} 11... O-O {[%clk 0:02:37.1]} 12. Bb2 {[%clk 0:02:22.8]}
12... a6 {[%clk 0:02:35.7]} 13. Qe2 {[%clk 0:02:08.3]} 13... Qc7 {[%clk
0:02:20.7]} 14. Nc3 {[%clk 0:01:54.5]} 14... Bd6 {[%clk 0:02:11]} 15. h3 {[%clk
0:01:47.6]} 15... Rfe8 {[%clk 0:02:05.8]} 16. Rad1 {[%clk 0:01:43.3]} 16... Rad8
{[%clk 0:01:53.9]} 17. Ndb5 {[%clk 0:01:19.3]} 17... axb5 {[%clk 0:01:53.4]} 18.
Nxb5 {[%clk 0:01:19.2]} 18... Bh2+ {[%clk 0:01:53.7]} 19. Kh1 {[%clk 0:01:19.5]}
19... Qb8 {[%clk 0:01:54.3]} 20. g3 {[%clk 0:01:10.7]} 20... Bxg3 {[%clk
0:01:52.2]} 21. fxg3 {[%clk 0:01:11.6]} 21... Qxg3 {[%clk 0:01:48.4]} 22. Rf3
{[%clk 0:00:50.9]} 22... Qh4 {[%clk 0:00:36.5]} 23. Rg1 {[%clk 0:00:34.2]} 23...
e5 {[%clk 0:00:21.5]} 24. Nd6 {[%clk 0:00:31.7]} 24... e4 {[%clk 0:00:21.8]} 25.
Nxe8 {[%clk 0:00:23]} 25... exf3 {[%clk 0:00:20.7]} 26. Nxf6+ {[%clk 0:00:19.6]}
26... Nxf6 {[%clk 0:00:21.6]} 27. Qxf3 {[%clk 0:00:20]} 27... Kf8 {[%clk
0:00:14.7]} 28. Ba3+ {[%clk 0:00:12.6]} 28... Kg8 {[%clk 0:00:14]} 29. Bb2
{[%clk 0:00:12.9]} 29... Kf8 {[%clk 0:00:09.9]} 30. Ba3+ {[%clk 0:00:10.1]}
30... Kg8 {[%clk 0:00:09.8]} 31. Bb2 {[%clk 0:00:10.2]} 1/2-1/2

[Event "Late-Titled-Tuesday-Blitz-September-26-2023"]
[Site "Chess.com"]
[Date "2023.09.26"]
[Round "1"]
[White "AleksanderHnydiuk"]
[Black "canary2016"]
[Result "1-0"]
[WhiteElo "2551"]
[BlackElo "2140"]
[TimeControl "180+1"]
[EndTime "14:06:59 PDT"]
[Termination "AleksanderHnydiuk won by checkmate"]

1. d4 {[%clk 0:02:58.1]} 1... Nf6 {[%clk 0:02:59]} 2. Nf3 {[%clk 0:02:56.5]}
2... d5 {[%clk 0:02:58.3]} 3. c4 {[%clk 0:02:55.8]} 3... e6 {[%clk 0:02:57.6]}
4. g3 {[%clk 0:02:55.7]} 4... Bb4+ {[%clk 0:02:52.1]} 5. Bd2 {[%clk 0:02:55]}
5... Qe7 {[%clk 0:02:51]} 6. Bg2 {[%clk 0:02:45]} 6... O-O {[%clk 0:02:49.1]} 7.
O-O {[%clk 0:02:44.6]} 7... b6 {[%clk 0:02:25.1]} 8. Bg5 {[%clk 0:02:31]} 8...
h6 {[%clk 0:02:17.7]} 9. Bxf6 {[%clk 0:02:30]} 9... Qxf6 {[%clk 0:02:17.9]} 10.
Ne5 {[%clk 0:02:11]} 10... Bb7 {[%clk 0:02:13.3]} 11. cxd5 {[%clk 0:01:33.2]}
11... exd5 {[%clk 0:02:10.9]} 12. Qb3 {[%clk 0:01:32]} 12... Bd6 {[%clk
0:02:01.9]} 13. Bxd5 {[%clk 0:01:31.3]} 13... c6 {[%clk 0:01:54.7]} 14. Bf3
{[%clk 0:01:12.4]} 14... Bxe5 {[%clk 0:01:52.9]} 15. dxe5 {[%clk 0:01:13.3]}
15... Qxe5 {[%clk 0:01:52.6]} 16. Rd1 {[%clk 0:01:10.6]} 16... Na6 {[%clk
0:01:37.3]} 17. Na3 {[%clk 0:00:58.6]} 17... Nc5 {[%clk 0:01:32.4]} 18. Qc2
{[%clk 0:00:54.8]} 18... Rad8 {[%clk 0:01:29]} 19. Nc4 {[%clk 0:00:49.2]} 19...
Qf6 {[%clk 0:01:08.7]} 20. Rxd8 {[%clk 0:00:41.2]} 20... Rxd8 {[%clk 0:01:08.3]}
21. Rd1 {[%clk 0:00:41.5]} 21... Rd4 {[%clk 0:00:54.9]} 22. b3 {[%clk
0:00:33.6]} 22... Qd8 {[%clk 0:00:52.5]} 23. Rxd4 {[%clk 0:00:32.8]} 23... Qxd4
{[%clk 0:00:52.1]} 24. Kg2 {[%clk 0:00:31.2]} 24... Ne6 {[%clk 0:00:44.9]} 25.
Qf5 {[%clk 0:00:27.2]} 25... Ng5 {[%clk 0:00:34.5]} 26. Ne5 {[%clk 0:00:24]}
26... Nxf3 {[%clk 0:00:03.1]} 27. Qxf7+ {[%clk 0:00:22.3]} 27... Kh7 {[%clk
0:00:03.3]} 28. Qf5+ {[%clk 0:00:20.5]} 28... Kh8 {[%clk 0:00:02.5]} 29. Ng6+
{[%clk 0:00:15.5]} 29... Kg8 {[%clk 0:00:02.4]} 30. Ne7+ {[%clk 0:00:15.1]}
30... Kh8 {[%clk 0:00:02.4]} 31. Qf8+ {[%clk 0:00:14.4]} 31... Kh7 {[%clk
0:00:02.7]} 32. Qg8# {[%clk 0:00:14.5]} 1-0

[Event "Late-Titled-Tuesday-Blitz-September-26-2023"]
[Site "Chess.com"]
[Date "2023.09.26"]
[Round "1"]
[White "dcremisi"]
[Black "cthake"]
[Result "1-0"]
[WhiteElo "2508"]
[BlackElo "1893"]
[TimeControl "180+1"]
[EndTime "14:06:59 PDT"]
[Termination "dcremisi won by resignation"]

1. d4 {[%clk 0:02:50.4]} 1... Nf6 {[%clk 0:02:58]} 2. c4 {[%clk 0:02:50.4]} 2...
e6 {[%clk 0:02:57.1]} 3. Nf3 {[%clk 0:02:50.4]} 3... b6 {[%clk 0:02:56.1]} 4.
Nc3 {[%clk 0:02:50.6]} 4... Bb7 {[%clk 0:02:56.2]} 5. g3 {[%clk 0:02:50.3]} 5...
Bb4 {[%clk 0:02:55.6]} 6. Bg2 {[%clk 0:02:49.3]} 6... O-O {[%clk 0:02:55.4]} 7.
O-O {[%clk 0:02:47.2]} 7... d5 {[%clk 0:02:48.7]} 8. cxd5 {[%clk 0:01:47.3]}
8... exd5 {[%clk 0:02:48.5]} 9. Bg5 {[%clk 0:01:46]} 9... h6 {[%clk 0:02:43.9]}
10. Bxf6 {[%clk 0:01:37.5]} 10... Qxf6 {[%clk 0:02:43.6]} 11. Qb3 {[%clk
0:01:37.5]} 11... Bxc3 {[%clk 0:02:38.3]} 12. Qxc3 {[%clk 0:01:37.6]} 12... Qd6
{[%clk 0:02:18]} 13. Rac1 {[%clk 0:01:36.4]} 13... c6 {[%clk 0:02:12.7]} 14. Ne5
{[%clk 0:01:34.9]} 14... Rc8 {[%clk 0:02:04.6]} 15. e4 {[%clk 0:01:34.1]} 15...
Nd7 {[%clk 0:01:59.4]} 16. exd5 {[%clk 0:01:30.8]} 16... cxd5 {[%clk 0:01:56.3]}
17. Qe3 {[%clk 0:01:30.5]} 17... Rxc1 {[%clk 0:01:53.3]} 18. Rxc1 {[%clk
0:01:30.3]} 18... Re8 {[%clk 0:01:49.7]} 19. f4 {[%clk 0:00:46.2]} 19... f6
{[%clk 0:01:47]} 20. Qa3 {[%clk 0:00:42.2]} 20... Qxa3 {[%clk 0:01:44.1]} 21.
bxa3 {[%clk 0:00:43]} 21... fxe5 {[%clk 0:01:43.7]} 22. Rc7 {[%clk 0:00:42.7]}
22... Bc8 {[%clk 0:01:41.1]} 23. Bxd5+ {[%clk 0:00:41.7]} 23... Kh8 {[%clk
0:01:34.7]} 24. dxe5 {[%clk 0:00:41.4]} 24... Nc5 {[%clk 0:01:32.1]} 25. Rxa7
{[%clk 0:00:39.3]} 25... Bf5 {[%clk 0:01:23]} 26. a4 {[%clk 0:00:38.6]} 26...
Bc2 {[%clk 0:01:21.1]} 27. a5 {[%clk 0:00:38.1]} 27... Rb8 {[%clk 0:01:08.9]}
28. Rc7 {[%clk 0:00:30.5]} 28... Be4 {[%clk 0:01:03]} 29. Bxe4 {[%clk
0:00:26.1]} 29... Nxe4 {[%clk 0:01:02.4]} 30. a6 {[%clk 0:00:26.4]} 30... Ra8
{[%clk 0:01:00.1]} 31. a7 {[%clk 0:00:26.3]} 31... Nc5 {[%clk 0:00:57]} 32. f5
{[%clk 0:00:26.5]} 32... Kg8 {[%clk 0:00:51.9]} 33. e6 {[%clk 0:00:26.5]} 33...
Kf8 {[%clk 0:00:52.1]} 34. Kg2 {[%clk 0:00:24.2]} 34... Nd3 {[%clk 0:00:43.2]}
35. Rb7 {[%clk 0:00:22]} 35... Nc5 {[%clk 0:00:40.5]} 36. Rb8+ {[%clk
0:00:20.3]} 36... Rxb8 {[%clk 0:00:33.1]} 37. axb8=Q+ {[%clk 0:00:19.1]} 37...
Ke7 {[%clk 0:00:32.8]} 38. Qc7+ {[%clk 0:00:19]} 38... Kf6 {[%clk 0:00:30.7]}
39. Qf7+ {[%clk 0:00:18.8]} 39... Ke5 {[%clk 0:00:29.1]} 40. e7 {[%clk
0:00:19.7]} 1-0

[Event "Late-Titled-Tuesday-Blitz-September-26-2023"]
[Site "Chess.com"]
[Date "2023.09.26"]
[Round "1"]
[White "ozates"]
[Black "tarno17"]
[Result "0-1"]
[WhiteElo "2542"]
[BlackElo "2166"]
[TimeControl "180+1"]
[EndTime "14:07:03 PDT"]
[Termination "tarno17 won by resignation"]

1. e4 {[%clk 0:03:00.9]} 1... c5 {[%clk 0:02:58.1]} 2. Nf3 {[%clk 0:03:00]} 2...
e6 {[%clk 0:02:58.5]} 3. c3 {[%clk 0:02:56.1]} 3... d5 {[%clk 0:02:58.3]} 4. e5
{[%clk 0:02:55]} 4... d4 {[%clk 0:02:52.8]} 5. Bb5+ {[%clk 0:02:49.1]} 5... Bd7
{[%clk 0:02:44.6]} 6. Bxd7+ {[%clk 0:02:49]} 6... Qxd7 {[%clk 0:02:45.1]} 7. O-O
{[%clk 0:02:49.9]} 7... d3 {[%clk 0:02:34.9]} 8. Re1 {[%clk 0:02:45.4]} 8... Nc6
{[%clk 0:02:25]} 9. c4 {[%clk 0:02:45.9]} 9... Nge7 {[%clk 0:02:16.9]} 10. Na3
{[%clk 0:02:45.8]} 10... Ng6 {[%clk 0:01:59]} 11. b3 {[%clk 0:02:45.6]} 11...
Be7 {[%clk 0:01:57.8]} 12. Bb2 {[%clk 0:02:45.7]} 12... h5 {[%clk 0:01:50.4]}
13. Nb5 {[%clk 0:02:37.5]} 13... a6 {[%clk 0:01:40.7]} 14. Nc3 {[%clk
0:02:25.9]} 14... Nb4 {[%clk 0:01:34.2]} 15. Re4 {[%clk 0:02:18.5]} 15... h4
{[%clk 0:01:23.7]} 16. Ne1 {[%clk 0:02:10.5]} 16... h3 {[%clk 0:01:19.4]} 17. g3
{[%clk 0:02:10.2]} 17... Rd8 {[%clk 0:01:13.6]} 18. f4 {[%clk 0:02:10.4]} 18...
Qc6 {[%clk 0:01:06.4]} 19. a3 {[%clk 0:02:08.1]} 19... Nc2 {[%clk 0:00:56.2]}
20. Nxc2 {[%clk 0:02:08]} 20... dxc2 {[%clk 0:00:57.1]} 21. Qxc2 {[%clk
0:02:08.9]} 21... Rd4 {[%clk 0:00:52.7]} 22. Rae1 {[%clk 0:02:08.2]} 22... O-O
{[%clk 0:00:51.5]} 23. R4e2 {[%clk 0:02:03.3]} 23... Rfd8 {[%clk 0:00:43.3]} 24.
Ne4 {[%clk 0:02:01.9]} 24... Rd3 {[%clk 0:00:29]} 25. Re3 {[%clk 0:02:02.2]}
25... Rxd2 {[%clk 0:00:23.6]} 26. Qc1 {[%clk 0:01:49.9]} 26... Rg2+ {[%clk
0:00:23.7]} 27. Kh1 {[%clk 0:01:47.2]} 27... Rdd2 {[%clk 0:00:20.6]} 28. Qxd2
{[%clk 0:01:22.9]} 28... Rxd2 {[%clk 0:00:20.3]} 29. R1e2 {[%clk 0:01:20.1]}
29... Rxe2 {[%clk 0:00:18.7]} 30. Rxe2 {[%clk 0:01:20.3]} 30... f5 {[%clk
0:00:16.4]} 31. exf6 {[%clk 0:01:21.2]} 31... gxf6 {[%clk 0:00:16.8]} 32. Kg1
{[%clk 0:01:21.7]} 32... f5 {[%clk 0:00:16.2]} 33. Nd2 {[%clk 0:01:17.7]} 33...
Kf7 {[%clk 0:00:15.7]} 34. Rf2 {[%clk 0:01:14.5]} 34... Bf6 {[%clk 0:00:15.7]}
35. Bxf6 {[%clk 0:01:13.4]} 35... Kxf6 {[%clk 0:00:16.6]} 36. Nf3 {[%clk
0:01:14.2]} 36... Qe4 {[%clk 0:00:15.8]} 37. Ng5 {[%clk 0:01:10.9]} 37... Qb1+
{[%clk 0:00:15.5]} 38. Rf1 {[%clk 0:01:11.1]} 38... Qxb3 {[%clk 0:00:14.9]} 39.
Nxh3 {[%clk 0:01:11.4]} 39... Qxc4 {[%clk 0:00:14]} 40. Ng5 {[%clk 0:01:10.7]}
40... Qd4+ {[%clk 0:00:14.2]} 41. Kg2 {[%clk 0:01:10.5]} 41... Qd2+ {[%clk
0:00:13.7]} 42. Rf2 {[%clk 0:01:10.5]} 42... Qd1 {[%clk 0:00:13.7]} 43. Rf1
{[%clk 0:01:07.9]} 43... Qc2+ {[%clk 0:00:13.5]} 44. Rf2 {[%clk 0:01:08.3]}
44... Qb3 {[%clk 0:00:13.7]} 45. Re2 {[%clk 0:01:07.4]} 45... Nf8 {[%clk
0:00:12.1]} 46. h4 {[%clk 0:01:07.3]} 46... c4 {[%clk 0:00:11.1]} 47. h5 {[%clk
0:01:06]} 47... c3 {[%clk 0:00:10.5]} 48. Nf3 {[%clk 0:00:50.7]} 48... c2 {[%clk
0:00:09.5]} 49. Nd4 {[%clk 0:00:51.6]} 49... Qd5+ {[%clk 0:00:07.7]} 0-1

[Event "Late-Titled-Tuesday-Blitz-September-26-2023"]
[Site "Chess.com"]
[Date "2023.09.26"]
[Round "1"]
[White "Mariia89"]
[Black "Smiechu"]
[Result "0-1"]
[WhiteElo "2086"]
[BlackElo "2530"]
[TimeControl "180+1"]
[EndTime "14:07:03 PDT"]
[Termination "Smiechu won on time"]

1. d4 {[%clk 0:03:00]} 1... Nf6 {[%clk 0:02:59.4]} 2. Nf3 {[%clk 0:02:59.8]}
2... c5 {[%clk 0:02:58.1]} 3. d5 {[%clk 0:02:59.2]} 3... e6 {[%clk 0:02:57.7]}
4. c4 {[%clk 0:02:55.5]} 4... exd5 {[%clk 0:02:57.1]} 5. cxd5 {[%clk 0:02:55]}
5... d6 {[%clk 0:02:57.8]} 6. Nc3 {[%clk 0:02:53.6]} 6... g6 {[%clk 0:02:58.3]}
7. Bg5 {[%clk 0:02:50.8]} 7... Bg7 {[%clk 0:02:58.6]} 8. Qd2 {[%clk 0:02:48]}
8... O-O {[%clk 0:02:50.3]} 9. e4 {[%clk 0:02:41.5]} 9... Re8 {[%clk 0:02:39.2]}
10. Be2 {[%clk 0:02:40.1]} 10... Bg4 {[%clk 0:02:38.7]} 11. O-O {[%clk
0:02:39.3]} 11... a6 {[%clk 0:02:37.5]} 12. a4 {[%clk 0:02:35.8]} 12... Nbd7
{[%clk 0:02:37.2]} 13. Rfe1 {[%clk 0:02:08.9]} 13... Qc7 {[%clk 0:02:26.4]} 14.
Qf4 {[%clk 0:01:37.6]} 14... Rab8 {[%clk 0:01:29.6]} 15. Bf1 {[%clk 0:00:44]}
15... Bxf3 {[%clk 0:01:20.3]} 16. Qxf3 {[%clk 0:00:42.3]} 16... Ne5 {[%clk
0:01:20.4]} 17. Qf4 {[%clk 0:00:36.6]} 17... Nh5 {[%clk 0:01:19.6]} 18. Qe3
{[%clk 0:00:36.2]} 18... Qd7 {[%clk 0:01:07.5]} 19. h3 {[%clk 0:00:29.5]} 19...
f6 {[%clk 0:00:55.2]} 20. Bh6 {[%clk 0:00:29.4]} 20... Bh8 {[%clk 0:00:50.5]}
21. Bf4 {[%clk 0:00:19.6]} 21... Nxf4 {[%clk 0:00:49.4]} 22. Qxf4 {[%clk
0:00:20.2]} 22... f5 {[%clk 0:00:47.7]} 23. exf5 {[%clk 0:00:17]} 23... Qxf5
{[%clk 0:00:47]} 24. Qxf5 {[%clk 0:00:14.7]} 24... gxf5 {[%clk 0:00:47.1]} 25.
f4 {[%clk 0:00:10]} 25... Ng6 {[%clk 0:00:42.7]} 26. g3 {[%clk 0:00:09.1]} 26...
Bd4+ {[%clk 0:00:38.6]} 27. Kg2 {[%clk 0:00:08.9]} 27... Kf7 {[%clk 0:00:38.3]}
28. Bd3 {[%clk 0:00:06]} 28... Kf6 {[%clk 0:00:37.3]} 29. Rad1 {[%clk
0:00:04.7]} 29... h5 {[%clk 0:00:33.3]} 30. Rxe8 {[%clk 0:00:03.9]} 30... Rxe8
{[%clk 0:00:32.6]} 31. Kf3 {[%clk 0:00:01.4]} 31... h4 {[%clk 0:00:28]} 0-1

[Event "Late-Titled-Tuesday-Blitz-September-26-2023"]
[Site "Chess.com"]
[Date "2023.09.26"]
[Round "1"]
[White "Bilan_Danila"]
[Black "Gyulamiryan-koryun"]
[Result "1-0"]
[WhiteElo "2517"]
[BlackElo "2009"]
[TimeControl "180+1"]
[EndTime "14:07:07 PDT"]
[Termination "Bilan_Danila won on time"]

1. d4 {[%clk 0:02:56.8]} 1... Nf6 {[%clk 0:02:55.5]} 2. Nf3 {[%clk 0:02:53.1]}
2... g6 {[%clk 0:02:52.6]} 3. Bg5 {[%clk 0:02:52.4]} 3... Bg7 {[%clk 0:02:51.3]}
4. c3 {[%clk 0:02:52.1]} 4... O-O {[%clk 0:02:49.3]} 5. Nbd2 {[%clk 0:02:52.7]}
5... c6 {[%clk 0:02:47.8]} 6. e4 {[%clk 0:02:52.4]} 6... d6 {[%clk 0:02:47.4]}
7. Bc4 {[%clk 0:02:48.8]} 7... Be6 {[%clk 0:02:41.4]} 8. Bxe6 {[%clk 0:02:43.6]}
8... fxe6 {[%clk 0:02:40.9]} 9. Qb3 {[%clk 0:02:44.5]} 9... Qd7 {[%clk
0:02:31.7]} 10. O-O {[%clk 0:02:32.2]} 10... h6 {[%clk 0:02:24.1]} 11. Bh4
{[%clk 0:02:24.2]} 11... g5 {[%clk 0:02:18.4]} 12. Bg3 {[%clk 0:02:20.4]} 12...
Nh5 {[%clk 0:02:17.5]} 13. Rfe1 {[%clk 0:02:08.9]} 13... Nf4 {[%clk 0:02:09.9]}
14. a4 {[%clk 0:01:53.9]} 14... Na6 {[%clk 0:02:06.2]} 15. Nc4 {[%clk
0:01:48.8]} 15... Nc7 {[%clk 0:02:00.8]} 16. Ne3 {[%clk 0:01:37]} 16... Kh7
{[%clk 0:01:47.2]} 17. Qc2 {[%clk 0:01:25]} 17... Kh8 {[%clk 0:01:45.6]} 18.
Rad1 {[%clk 0:01:21]} 18... b5 {[%clk 0:01:35.9]} 19. h4 {[%clk 0:01:09.3]}
19... gxh4 {[%clk 0:01:00.6]} 20. Nxh4 {[%clk 0:01:10.2]} 20... Kg8 {[%clk
0:00:56.8]} 21. axb5 {[%clk 0:00:53.5]} 21... Nxb5 {[%clk 0:00:54.5]} 22. Ng4
{[%clk 0:00:37.6]} 22... Rf7 {[%clk 0:00:34.1]} 23. e5 {[%clk 0:00:32.5]} 23...
d5 {[%clk 0:00:31.5]} 24. Bxf4 {[%clk 0:00:26.6]} 24... Rxf4 {[%clk 0:00:29.6]}
25. Qg6 {[%clk 0:00:27.1]} 25... Rxg4 {[%clk 0:00:24]} 26. Qxg4 {[%clk
0:00:26.5]} 26... Rf8 {[%clk 0:00:18.3]} 27. Rd3 {[%clk 0:00:21.9]} 27... Nc7
{[%clk 0:00:13.3]} 28. Rg3 {[%clk 0:00:21.4]} 28... Ne8 {[%clk 0:00:12.7]} 29.
Qh5 {[%clk 0:00:17.7]} 1-0